[Event "DFMMLV 2019"]
[Site "Braunfels"]
[Date "2019.06.21"]
[Round "3.47"]
[White "Reich, Kristina"]
[Black "Luecke, Kristina"]
[Result "1/2-1/2"]
[ECO "B38"]
[WhiteElo "1544"]
[BlackElo "1513"]
[Annotator "NA"]
[PlyCount "75"]
[EventDate "2019.06.20"]
[EventType "team-tourn"]
[EventCountry "GER"]
[SourceTitle "playchess.com"]
[Source "ChessBase"]
[SourceQuality "1"]
[WhiteTeam "Hamburg"]
[BlackTeam "Niedersachsen Bremen"]
[TimeControl "40/5400+30:1800+30"]

1. e4 {[%emt 0:00:00]} c5 {[%emt 0:00:00]} 2. Nf3 {[%emt 0:00:00]} g6 {[%emt 0:00:00]} 3. d4 {[%emt 0:00:00]} cxd4 {[%emt 0:00:00]} 4. Nxd4 {[%emt 0:00:00]} Bg7 {[%emt 0:00:08]} 5. c4 {[%emt 0:00:07]} Nc6 {[%emt 0:00:28]} 6. Be3 {[%emt 0:00:25]} Nf6 {[%emt 0:00:35]} 7. Nc3 {[%emt 0:00:11]} O-O {[%emt 0:01:23]} 8. Be2 {[%emt 0:00:32]} d6 {[%emt 0:00:49]} 9. O-O {[%emt 0:00:24]} Be6 {[%emt 0:02:59]} 10. Qd2 {[%emt 0:01:27]} a6 {[%emt 0:02:53]} 11. f3 {[%emt 0:01:44]} Qc7 {[%emt 0:04:05]} 12. b3 {[%emt 0:07:14]} Rfc8 {[%emt 0:06:34]} 13. Rfc1 {[%emt 0:04:43]} Qa5 {[%emt 0:06:36]} 14. Rab1 {[%emt 0:10:24]} Rab8 {[%emt 0:06:44]} 15. Bf1 {[%emt 0:11:50]} Nxd4 {[%emt 0:04:46]} 16. Bxd4 {[%emt 0:01:24]} Bd7 {[%emt 0:11:44]} 17. Rc2 {[%emt 0:08:14]} b5 {[%emt 0:11:25]} 18. b4 {[%emt 0:06:50]} Qd8 {[%emt 0:01:45]} 19. c5 {[%emt 0:14:45]} Bc6 {[%emt 0:06:36]} 20. cxd6 {[%emt 0:10:06]} Qxd6 {[%emt 0:01:44]} 21. e5 {[%emt 0:01:38]} Qe6 {[%emt 0:10:00]} 22. exf6 {[%emt 0:00:38]} Bxf6 {[%emt 0:00:57]} 23. Bf2 {[%emt 0:01:57]} Rd8 {[%emt 0:02:14]} 24. Qe2 {[%emt 0:01:02]} Qd7 {[%emt 0:02:14]} 25. Ne4 {[%emt 0:03:04]} Bxe4 {[%emt 0:07:15]} 26. Qxe4 {[%emt 0:00:20]} e6 {[%emt 0:02:32]} 27. Qc6 {[%emt 0:00:48]} Ra8 {[%emt 0:01:01]} 28. Be2 {[%emt 0:03:08]} Qxc6 {[%emt 0:01:03]} 29. Rxc6 {[%emt 0:00:10]} Rd2 {[%emt 0:00:17]} 30. Bd1 {[%emt 0:01:36]} Rxa2 {[%emt 0:00:48]} 31. Bb3 {[%emt 0:01:10]} Rd2 {[%emt 0:00:49]} 32. h3 {[%emt 0:01:38]} Bd4 {[%emt 0:02:54]} 33. Bxd4 {[%emt 0:00:48]} Rxd4 {[%emt 0:00:08]} 34. Ba2 {[%emt 0:05:10]} Rd2 {[%emt 0:00:26]} 35. Bb3 {[%emt 0:00:38]} Rd4 {[%emt 0:00:28]} 36. Ba2 {[%emt 0:00:41]} Rd2 {[%emt 0:00:13]} 37. Bb3 {[%emt 0:00:39]} Rd4 {[%emt 0:00:07]} 38. Ba2 {[%emt 0:00:32]} 1/2-1/2

[Event "DFMMLV 2019"]
[Site "Braunfels"]
[Date "2019.06.21"]
[Round "3.48"]
[White "Evering, Kira"]
[Black "Hoelzer, Jeanette"]
[Result "0-1"]
[ECO "C45"]
[WhiteElo "1332"]
[BlackElo "1662"]
[Annotator "NA"]
[PlyCount "40"]
[EventDate "2019.06.20"]
[EventType "team-tourn"]
[EventCountry "GER"]
[SourceTitle "playchess.com"]
[Source "ChessBase"]
[SourceQuality "1"]
[WhiteTeam "Niedersachsen Bremen"]
[BlackTeam "Hamburg"]
[TimeControl "40/5400+30:1800+30"]

1. e4 {[%emt 0:00:00]} e5 {[%emt 0:00:00]} 2. Nf3 {[%emt 0:00:00]} Nc6 {[%emt 0:00:00]} 3. d4 {[%emt 0:00:09]} exd4 {[%emt 0:00:00]} 4. Nxd4 {[%emt 0:00:12]} Bc5 {[%emt 0:00:00]} 5. Nb3 {[%emt 0:00:19]} Bb6 {[%emt 0:00:41]} 6. Nc3 {[%emt 0:00:32]} Nge7 {[%emt 0:00:34]} 7. Qe2 {[%emt 0:00:45]} O-O {[%emt 0:00:40]} 8. Be3 {[%emt 0:00:47]} f5 {[%emt 0:00:36]} 9. O-O-O {[%emt 0:18:12]} f4 {[%emt 0:01:46]} 10. Qc4+ {[%emt 0:04:15]} Kh8 {[%emt 0:01:22]} 11. Bd4 {[%emt 0:01:22]} Nxd4 {[%emt 0:08:00]} 12. Nxd4 {[%emt 0:00:37]} Nf5 {[%emt 0:06:04]} 13. Ne6 {[%emt 0:04:47]} d5 {[%emt 0:08:08]} 14. exd5 {[%emt 0:02:09]} Bxe6 {[%emt 0:02:44]} 15. dxe6 {[%emt 0:00:17]} Qe8 {[%emt 0:09:02]} 16. Nd5 {[%emt 0:10:20]} Qxe6 {[%emt 0:04:50]} 17. Nxb6 {[%emt 0:00:39]} Qxb6 18. Rd2 Rad8 {[%emt 0:05:09]} 19. Rxd8 {[%emt 0:07:48]} Rxd8 {[%emt 0:00:10]} 20. f3 {[%emt 0:01:05]} Qe3+ {[%emt 0:03:02]} 0-1

[Event "DFMMLV 2019"]
[Site "Braunfels"]
[Date "2019.06.21"]
[Round "3.49"]
[White "Froehlich, Franziska"]
[Black "Bardorz, Jana"]
[Result "1-0"]
[ECO "C95"]
[WhiteElo "1820"]
[BlackElo "1769"]
[Annotator "NA"]
[PlyCount "109"]
[EventDate "2019.06.20"]
[EventType "team-tourn"]
[EventCountry "GER"]
[SourceTitle "playchess.com"]
[Source "ChessBase"]
[SourceQuality "1"]
[WhiteTeam "Wuerttemberg 2"]
[BlackTeam "Bayern 2"]
[TimeControl "40/5400+30:1800+30"]

1. e4 {[%emt 0:00:00]} e5 {[%emt 0:00:00]} 2. Nf3 {[%emt 0:00:00]} Nc6 {[%emt 0:00:00]} 3. Bb5 {[%emt 0:00:00]} a6 {[%emt 0:00:00]} 4. Ba4 {[%emt 0:00:00]} Nf6 {[%emt 0:00:00]} 5. O-O {[%emt 0:00:00]} Be7 {[%emt 0:00:00]} 6. Re1 {[%emt 0:00:03]} b5 {[%emt 0:00:00]} 7. Bb3 {[%emt 0:00:05]} d6 {[%emt 0:00:03]} 8. c3 {[%emt 0:02:45]} O-O {[%emt 0:00:25]} 9. h3 {[%emt 0:00:25]} Nb8 {[%emt 0:00:39]} 10. d4 {[%emt 0:01:08]} Nbd7 {[%emt 0:00:09]} 11. Nbd2 {[%emt 0:01:01]} Bb7 {[%emt 0:00:50]} 12. Bc2 {[%emt 0:03:52]} Re8 {[%emt 0:00:58]} 13. Nf1 {[%emt 0:02:05]} Bf8 {[%emt 0:01:33]} 14. Ng3 {[%emt 0:00:19]} g6 {[%emt 0:00:19]} 15. a4 {[%emt 0:08:15]} c5 {[%emt 0:02:12]} 16. axb5 {[%emt 0:04:09]} axb5 {[%emt 0:00:50]} 17. Rxa8 {[%emt 0:00:09]} Qxa8 {[%emt 0:01:11]} 18. d5 {[%emt 0:00:21]} c4 {[%emt 0:03:46]} 19. Nh2 {[%emt 0:07:50]} Nc5 {[%emt 0:07:22]} 20. Bg5 {[%emt 0:11:21]} Be7 {[%emt 0:04:16]} 21. Qc1 {[%emt 0:02:58]} Nfd7 {[%emt 0:05:41]} 22. Bxe7 {[%emt 0:07:54]} Rxe7 {[%emt 0:00:08]} 23. Ng4 {[%emt 0:00:19]} Qf8 {[%emt 0:08:27]} 24. Qg5 {[%emt 0:06:15]} f6 {[%emt 0:03:54]} 25. Qd2 {[%emt 0:03:14]} h5 {[%emt 0:05:51]} 26. Ne3 {[%emt 0:01:08]} Re8 {[%emt 0:06:23]} 27. Qd1 {[%emt 0:05:15]} Qh6 {[%emt 0:05:17]} 28. Nef5 {[%emt 0:05:26]} gxf5 {[%emt 0:07:13]} 29. Nxf5 {[%emt 0:00:07]} Qh7 {[%emt 0:03:08]} 30. Nxd6 {[%emt 0:03:16]} Rf8 {[%emt 0:03:30]} 31. Re3 {[%emt 0:01:59]} Ba6 {[%emt 0:08:28]} 32. Nf5 {[%emt 0:04:14]} Kh8 {[%emt 0:03:54]} 33. d6 {[%emt 0:05:33]} Rg8 {[%emt 0:04:09]} 34. Ne7 {[%emt 0:01:40]} Rg5 {[%emt 0:02:52]} 35. Qf3 {[%emt 0:05:14]} Nb7 {[%emt 0:06:29]} 36. Nd5 {[%emt 0:01:58]} Qg6 {[%emt 0:03:03]} 37. Nc7 {[%emt 0:01:02]} Nbc5 {[%emt 0:01:16]} 38. g3 {[%emt 0:03:49]} Nf8 {[%emt 0:03:26]} 39. Kh2 {[%emt 0:01:06]} Nfe6 {[%emt 0:00:39]} 40. d7 {[%emt 0:00:52]} Bb7 {[%emt 0:00:59]} 41. h4 {[%emt 0:31:29]} Rg4 {[%emt 0:05:29]} 42. Qf5 {[%emt 0:00:00]} Qxf5 {[%emt 0:04:22]} 43. exf5 {[%emt 0:00:00]} Nd8 {[%emt 0:00:56]} 44. Nxb5 {[%emt 0:00:00]} Nxd7 {[%emt 0:02:42]} 45. Nd6 {[%emt 0:00:00]} Bd5 {[%emt 0:03:12]} 46. Bd1 {[%emt 0:00:00]} Rg7 {[%emt 0:01:42]} 47. Bxh5 {[%emt 0:00:00]} Nf7 {[%emt 0:01:29]} 48. Ne8 {[%emt 0:00:00]} Rg8 {[%emt 0:01:07]} 49. Nc7 {[%emt 0:00:00]} Nh6 {[%emt 0:07:05]} 50. Nxd5 {[%emt 0:00:00]} Nxf5 {[%emt 0:00:07]} 51. Re2 {[%emt 0:00:00]} Nd6 {[%emt 0:01:12]} 52. Bf3 {[%emt 0:00:00]} Kg7 {[%emt 0:01:24]} 53. Rd2 {[%emt 0:00:00]} Rd8 {[%emt 0:02:54]} 54. Ne3 {[%emt 0:00:00]} Nf7 {[%emt 0:01:11]} 55. Nxc4 {[%emt 0:00:00]} 1-0

[Event "DFMMLV 2019"]
[Site "Braunfels"]
[Date "2019.06.21"]
[Round "3.50"]
[White "Todorova, Kalina"]
[Black "Yi, Wendy"]
[Result "0-1"]
[ECO "D37"]
[WhiteElo "1796"]
[BlackElo "1820"]
[Annotator "NA"]
[PlyCount "132"]
[EventDate "2019.06.20"]
[EventType "team-tourn"]
[EventCountry "GER"]
[SourceTitle "playchess.com"]
[Source "ChessBase"]
[SourceQuality "1"]
[WhiteTeam "Bayern 2"]
[BlackTeam "Wuerttemberg 2"]
[TimeControl "40/5400+30:1800+30"]

1. d4 {[%emt 0:00:00]} d5 {[%emt 0:00:00]} 2. c4 {[%emt 0:00:00]} e6 {[%emt 0:00:00]} 3. Nc3 {[%emt 0:00:00]} Nf6 {[%emt 0:00:15]} 4. Nf3 {[%emt 0:01:50]} Nbd7 {[%emt 0:01:07]} 5. g3 {[%emt 0:02:01]} Be7 {[%emt 0:07:23]} 6. Bg2 {[%emt 0:01:35]} O-O {[%emt 0:02:54]} 7. Qc2 {[%emt 0:01:59]} dxc4 {[%emt 0:08:29]} 8. e4 {[%emt 0:15:32]} c5 {[%emt 0:06:34]} 9. O-O {[%emt 0:01:59]} cxd4 {[%emt 0:06:56]} 10. Nxd4 {[%emt 0:00:05]} e5 {[%emt 0:02:22]} 11. Nf3 {[%emt 0:07:27]} Rb8 {[%emt 0:12:22]} 12. Rd1 {[%emt 0:07:51]} Qc7 {[%emt 0:02:04]} 13. Nd5 {[%emt 0:09:34]} Nxd5 {[%emt 0:00:21]} 14. exd5 {[%emt 0:00:03]} b5 {[%emt 0:06:35]} 15. Ng5 {[%emt 0:06:22]} Nf6 {[%emt 0:04:00]} 16. a4 {[%emt 0:11:25]} b4 {[%emt 0:06:03]} 17. Nf3 {[%emt 0:04:29]} Bd6 {[%emt 0:07:35]} 18. Bg5 {[%emt 0:03:02]} Nd7 {[%emt 0:02:30]} 19. Rac1 {[%emt 0:02:46]} Ba6 {[%emt 0:03:05]} 20. Nd2 {[%emt 0:02:01]} Rfc8 {[%emt 0:01:26]} 21. Bf1 {[%emt 0:05:16]} b3 {[%emt 0:03:58]} 22. Qf5 {[%emt 0:08:19]} h6 {[%emt 0:06:49]} 23. Be3 {[%emt 0:03:25]} Nb6 {[%emt 0:02:20]} 24. Bxb6 {[%emt 0:03:02]} Qxb6 {[%emt 0:00:13]} 25. Bxc4 {[%emt 0:01:10]} Bb4 {[%emt 0:04:33]} 26. Bxa6 {[%emt 0:00:51]} Rxc1 {[%emt 0:00:18]} 27. Rxc1 {[%emt 0:00:03]} Bxd2 {[%emt 0:00:40]} 28. Rc8+ {[%emt 0:00:03]} Rxc8 {[%emt 0:00:28]} 29. Qxc8+ {[%emt 0:00:04]} Kh7 {[%emt 0:00:09]} 30. Bd3+ {[%emt 0:00:09]} g6 {[%emt 0:00:27]} 31. Qe8 {[%emt 0:01:23]} Qf6 {[%emt 0:00:20]} 32. f4 {[%emt 0:00:45]} exf4 {[%emt 0:00:42]} 33. Qe4 {[%emt 0:01:04]} fxg3 {[%emt 0:00:27]} 34. hxg3 {[%emt 0:00:07]} Ba5 {[%emt 0:01:07]} 35. Qg2 {[%emt 0:00:54]} Qd4+ {[%emt 0:01:04]} 36. Qf2 {[%emt 0:00:14]} Qxd5 {[%emt 0:00:21]} 37. Qf1 {[%emt 0:00:59]} Bb6+ {[%emt 0:00:30]} 38. Kh2 {[%emt 0:00:03]} Kg7 39. Bc4 {[%emt 0:00:27]} Qd7 {[%emt 0:02:26]} 40. Bxb3 {[%emt 0:00:16]} Bd4 {[%emt 0:00:00]} 41. Qg2 {[%emt 0:10:17]} Qf5 {[%emt 0:03:03]} 42. Bc4 {[%emt 0:13:04]} Qh5+ {[%emt 0:02:06]} 43. Qh3 {[%emt 0:00:06]} Qxh3+ {[%emt 0:00:28]} 44. Kxh3 {[%emt 0:00:04]} Bxb2 {[%emt 0:00:11]} 45. g4 {[%emt 0:01:21]} a5 {[%emt 0:03:22]} 46. Kg3 {[%emt 0:04:05]} f6 {[%emt 0:03:50]} 47. Be6 {[%emt 0:01:21]} h5 {[%emt 0:01:36]} 48. gxh5 {[%emt 0:02:57]} gxh5 {[%emt 0:00:16]} 49. Kh4 {[%emt 0:00:47]} Kg6 {[%emt 0:00:33]} 50. Bd7 {[%emt 0:00:35]} Bc3 {[%emt 0:02:18]} 51. Be8+ {[%emt 0:00:58]} Kh6 {[%emt 0:00:11]} 52. Bd7 {[%emt 0:00:08]} Be1+ {[%emt 0:00:27]} 53. Kh3 {[%emt 0:00:17]} Kg5 {[%emt 0:00:14]} 54. Kg2 {[%emt 0:00:06]} Kf4 {[%emt 0:03:10]} 55. Bc6 {[%emt 0:00:49]} f5 {[%emt 0:01:18]} 56. Bb7 {[%emt 0:00:51]} Ke3 {[%emt 0:03:43]} 57. Bf3 {[%emt 0:01:02]} h4 {[%emt 0:00:21]} 58. Bc6 {[%emt 0:00:33]} f4 {[%emt 0:00:36]} 59. Kf1 {[%emt 0:00:30]} Bc3 {[%emt 0:02:08]} 60. Bg2 {[%emt 0:00:17]} f3 {[%emt 0:01:12]} 61. Bh3 {[%emt 0:00:14]} Kf4 {[%emt 0:00:33]} 62. Kg1 {[%emt 0:00:11]} Kg3 {[%emt 0:00:45]} 63. Bf1 {[%emt 0:00:06]} Bd4+ {[%emt 0:00:23]} 64. Kh1 {[%emt 0:00:14]} Kf2 {[%emt 0:00:28]} 65. Bh3 {[%emt 0:02:24]} Ke1 {[%emt 0:00:18]} 66. Bg4 {[%emt 0:00:34]} f2 0-1

[Event "DFMMLV 2019"]
[Site "Braunfels"]
[Date "2019.06.21"]
[Round "3.51"]
[White "Lederer, Leia"]
[Black "Alsheimer, Lea"]
[Result "1/2-1/2"]
[ECO "C02"]
[WhiteElo "1728"]
[BlackElo "1707"]
[Annotator "NA"]
[PlyCount "36"]
[EventDate "2019.06.20"]
[EventType "team-tourn"]
[EventCountry "GER"]
[SourceTitle "playchess.com"]
[Source "ChessBase"]
[SourceQuality "1"]
[WhiteTeam "Wuerttemberg 2"]
[BlackTeam "Bayern 2"]
[TimeControl "40/5400+30:1800+30"]

1. e4 {[%emt 0:00:00]} e6 {[%emt 0:00:00]} 2. d4 {[%emt 0:00:00]} d5 {[%emt 0:00:00]} 3. e5 {[%emt 0:00:00]} c5 {[%emt 0:00:03]} 4. Nf3 {[%emt 0:00:00]} Nc6 {[%emt 0:00:20]} 5. Nc3 {[%emt 0:00:42]} cxd4 {[%emt 0:02:55]} 6. Nxd4 {[%emt 0:01:51]} Bc5 {[%emt 0:00:36]} 7. Be3 {[%emt 0:02:05]} Qe7 {[%emt 0:07:39]} 8. Bb5 {[%emt 0:13:30]} Bd7 {[%emt 0:01:16]} 9. Bxc6 {[%emt 0:00:29]} bxc6 {[%emt 0:00:36]} 10. Qg4 {[%emt 0:03:07]} f5 {[%emt 0:01:41]} 11. Qh5+ {[%emt 0:03:22]} g6 {[%emt 0:00:21]} 12. Qd1 {[%emt 0:00:16]} Bxd4 {[%emt 0:00:27]} 13. Qxd4 {[%emt 0:00:15]} g5 {[%emt 0:02:17]} 14. Na4 {[%emt 0:04:57]} Nh6 {[%emt 0:03:07]} 15. Bd2 {[%emt 0:06:11]} f4 {[%emt 0:01:37]} 16. Bb4 {[%emt 0:03:04]} Nf5 {[%emt 0:00:37]} 17. Qc3 {[%emt 0:11:13]} Qd8 {[%emt 0:05:03]} 18. Nc5 {[%emt 0:06:48]} a5 {[%emt 0:07:06]} 1/2-1/2

[Event "DFMMLV 2019"]
[Site "Braunfels"]
[Date "2019.06.21"]
[Round "3.52"]
[White "Pavlov, Liliane"]
[Black "Roesler, Hannah Clara Hed"]
[Result "0-1"]
[ECO "A58"]
[WhiteElo "1619"]
[BlackElo "1638"]
[Annotator "NA"]
[PlyCount "84"]
[EventDate "2019.06.20"]
[EventType "team-tourn"]
[EventCountry "GER"]
[SourceTitle "playchess.com"]
[Source "ChessBase"]
[SourceQuality "1"]
[WhiteTeam "Bayern 2"]
[BlackTeam "Wuerttemberg 2"]
[TimeControl "40/5400+30:1800+30"]

1. d4 {[%emt 0:00:00]} Nf6 {[%emt 0:00:00]} 2. c4 {[%emt 0:00:00]} c5 {[%emt 0:00:36]} 3. d5 {[%emt 0:01:30]} b5 {[%emt 0:00:15]} 4. cxb5 {[%emt 0:01:52]} a6 {[%emt 0:00:47]} 5. bxa6 {[%emt 0:04:45]} Bxa6 {[%emt 0:01:37]} 6. Nc3 {[%emt 0:02:19]} g6 {[%emt 0:01:08]} 7. g3 {[%emt 0:02:47]} d6 {[%emt 0:03:44]} 8. Bg2 {[%emt 0:06:05]} Bg7 {[%emt 0:02:17]} 9. Nf3 {[%emt 0:01:25]} O-O {[%emt 0:02:05]} 10. O-O {[%emt 0:00:25]} Nbd7 {[%emt 0:03:01]} 11. h3 {[%emt 0:05:37]} Qa5 {[%emt 0:08:02]} 12. Bd2 {[%emt 0:04:25]} Rfb8 {[%emt 0:09:15]} 13. Rb1 {[%emt 0:04:03]} Qc7 {[%emt 0:09:21]} 14. b3 {[%emt 0:07:56]} Nb6 {[%emt 0:04:46]} 15. Ne1 {[%emt 0:03:49]} Qb7 {[%emt 0:04:27]} 16. Be3 {[%emt 0:03:04]} Ne8 {[%emt 0:03:50]} 17. Bd2 {[%emt 0:01:55]} Nc7 {[%emt 0:02:29]} 18. Nc2 {[%emt 0:01:19]} Qc8 {[%emt 0:06:47]} 19. Re1 {[%emt 0:04:26]} f5 {[%emt 0:00:32]} 20. e4 {[%emt 0:02:53]} fxe4 {[%emt 0:01:00]} 21. Nxe4 {[%emt 0:02:33]} Bb7 {[%emt 0:03:59]} 22. Bc3 {[%emt 0:10:53]} Bxd5 {[%emt 0:03:38]} 23. Bxg7 {[%emt 0:02:32]} Kxg7 {[%emt 0:00:26]} 24. Nc3 {[%emt 0:00:19]} Bxg2 {[%emt 0:02:28]} 25. Kxg2 {[%emt 0:01:20]} Qd7 {[%emt 0:02:00]} 26. b4 {[%emt 0:03:37]} c4 {[%emt 0:04:11]} 27. Qd4+ {[%emt 0:00:47]} e5 {[%emt 0:01:15]} 28. Qh4 {[%emt 0:02:19]} Rf8 {[%emt 0:02:38]} 29. Ne3 {[%emt 0:01:49]} Qc6+ {[%emt 0:04:13]} 30. Kg1 {[%emt 0:00:47]} Rae8 {[%emt 0:00:38]} 31. Ne4 {[%emt 0:01:36]} d5 {[%emt 0:01:22]} 32. Ng5 {[%emt 0:01:45]} h6 {[%emt 0:01:30]} 33. Ng4 {[%emt 0:04:17]} hxg5 {[%emt 0:01:24]} 34. Qh6+ {[%emt 0:00:08]} Kg8 {[%emt 0:00:44]} 35. Nxe5 {[%emt 0:00:39]} Rxe5 {[%emt 0:01:52]} 36. Rxe5 {[%emt 0:00:21]} Qf6 {[%emt 0:00:34]} 37. Rxg5 {[%emt 0:01:10]} Qxf2+ {[%emt 0:00:30]} 38. Kh1 {[%emt 0:00:07]} Qf3+ {[%emt 0:01:20]} 39. Kh2 {[%emt 0:01:01]} Qe2+ {[%emt 0:02:42]} 40. Kg1 {[%emt 0:00:37]} Qe3+ {[%emt 0:01:08]} 41. Kg2 {[%emt 0:32:19]} Rf2+ {[%emt 0:32:28]} 42. Kg1 {[%emt 0:00:23]} Rb2+ {[%emt 0:01:23]} 0-1

[Event "DFMMLV 2019"]
[Site "Braunfels"]
[Date "2019.06.21"]
[Round "3.53"]
[White "Hoeglauer, Jenny"]
[Black "Schaefer, Ann-Kathrin"]
[Result "0-1"]
[ECO "B20"]
[WhiteElo "1703"]
[BlackElo "1714"]
[Annotator "NA"]
[PlyCount "48"]
[EventDate "2019.06.20"]
[EventType "team-tourn"]
[EventCountry "GER"]
[SourceTitle "playchess.com"]
[Source "ChessBase"]
[SourceQuality "1"]
[WhiteTeam "Wuerttemberg 2"]
[BlackTeam "Bayern 2"]
[TimeControl "40/5400+30:1800+30"]

1. e4 {[%emt 0:00:00]} c5 {[%emt 0:00:00]} 2. Nc3 {[%emt 0:00:00]} a6 {[%emt 0:00:00]} 3. a4 {[%emt 0:00:00]} b6 {[%emt 0:00:00]} 4. f4 {[%emt 0:00:05]} Bb7 {[%emt 0:00:13]} 5. Bc4 {[%emt 0:00:54]} e6 {[%emt 0:00:39]} 6. d3 {[%emt 0:04:10]} d5 {[%emt 0:03:58]} 7. exd5 {[%emt 0:00:38]} exd5 {[%emt 0:00:38]} 8. Qe2+ {[%emt 0:00:39]} Be7 {[%emt 0:00:50]} 9. Bb3 {[%emt 0:00:58]} Nf6 {[%emt 0:05:03]} 10. Nf3 {[%emt 0:01:35]} Nc6 {[%emt 0:01:15]} 11. O-O {[%emt 0:03:29]} O-O {[%emt 0:03:06]} 12. Ne5 {[%emt 0:04:42]} Nd4 {[%emt 0:13:19]} 13. Qf2 {[%emt 0:01:05]} Nxb3 {[%emt 0:02:43]} 14. cxb3 {[%emt 0:00:06]} d4 {[%emt 0:00:59]} 15. Ne2 {[%emt 0:03:38]} Bd5 {[%emt 0:10:29]} 16. Nc4 {[%emt 0:03:35]} b5 {[%emt 0:06:34]} 17. axb5 {[%emt 0:04:28]} axb5 {[%emt 0:00:45]} 18. Rxa8 {[%emt 0:00:06]} Bxa8 {[%emt 0:00:16]} 19. Na3 {[%emt 0:04:27]} Qd7 {[%emt 0:02:59]} 20. Nc2 {[%emt 0:14:07]} b4 {[%emt 0:12:59]} 21. Bd2 {[%emt 0:09:11]} Qd5 {[%emt 0:03:17]} 22. Nc1 {[%emt 0:01:45]} Bd6 {[%emt 0:09:36]} 23. Re1 {[%emt 0:03:56]} Nh5 {[%emt 0:01:26]} 24. g3 {[%emt 0:03:29]} Qe5 0-1

[Event "DFMMLV 2019"]
[Site "Braunfels"]
[Date "2019.06.21"]
[Round "3.54"]
[White "Weber, Leonora"]
[Black "Zell, Mirjam"]
[Result "0-1"]
[ECO "C54"]
[WhiteElo "1712"]
[BlackElo "1660"]
[Annotator "NA"]
[PlyCount "79"]
[EventDate "2019.06.20"]
[EventType "team-tourn"]
[EventCountry "GER"]
[SourceTitle "playchess.com"]
[Source "ChessBase"]
[SourceQuality "1"]
[WhiteTeam "Bayern 2"]
[BlackTeam "Wuerttemberg 2"]
[TimeControl "40/5400+30:1800+30"]

1. e4 {[%emt 0:00:00]} e5 {[%emt 0:00:00]} 2. Nf3 {[%emt 0:00:00]} Nc6 {[%emt 0:00:00]} 3. Bc4 {[%emt 0:00:00]} Bc5 {[%emt 0:00:14]} 4. c3 {[%emt 0:00:00]} Nf6 {[%emt 0:00:47]} 5. d4 {[%emt 0:00:00]} exd4 {[%emt 0:06:28]} 6. cxd4 {[%emt 0:00:04]} Bb4+ {[%emt 0:00:20]} 7. Bd2 {[%emt 0:00:07]} Bxd2+ {[%emt 0:10:57]} 8. Nbxd2 {[%emt 0:00:09]} d6 {[%emt 0:00:56]} 9. O-O {[%emt 0:06:16]} O-O {[%emt 0:01:11]} 10. e5 {[%emt 0:16:47]} dxe5 {[%emt 0:02:58]} 11. dxe5 {[%emt 0:00:08]} Ng4 {[%emt 0:02:08]} 12. Re1 {[%emt 0:15:45]} Re8 {[%emt 0:04:48]} 13. Re2 {[%emt 0:02:53]} Ngxe5 {[%emt 0:09:12]} 14. Nxe5 {[%emt 0:00:47]} Rxe5 {[%emt 0:01:54]} 15. Nf3 {[%emt 0:36:18]} Qxd1+ {[%emt 0:02:14]} 16. Rxd1 {[%emt 0:00:12]} Rxe2 {[%emt 0:00:07]} 17. Bxe2 {[%emt 0:00:07]} Be6 {[%emt 0:03:49]} 18. a3 {[%emt 0:01:48]} a6 {[%emt 0:01:38]} 19. Nd4 {[%emt 0:01:44]} Nxd4 {[%emt 0:01:36]} 20. Rxd4 {[%emt 0:00:02]} Kf8 {[%emt 0:02:46]} 21. Bf3 {[%emt 0:01:16]} Rb8 {[%emt 0:01:07]} 22. Rb4 {[%emt 0:01:11]} b6 {[%emt 0:01:24]} 23. Rd4 {[%emt 0:01:54]} Ke7 {[%emt 0:03:10]} 24. Kf1 {[%emt 0:02:18]} Rd8 {[%emt 0:00:36]} 25. Rxd8 {[%emt 0:00:30]} Kxd8 {[%emt 0:00:05]} 26. Ke2 {[%emt 0:01:29]} Kd7 {[%emt 0:00:40]} 27. Kd3 {[%emt 0:01:39]} Kd6 {[%emt 0:02:24]} 28. Kd4 {[%emt 0:00:05]} c5+ {[%emt 0:00:36]} 29. Ke4 {[%emt 0:00:18]} Bd5+ {[%emt 0:00:08]} 30. Ke3 {[%emt 0:07:07]} Bxf3 {[%emt 0:00:08]} 31. gxf3 {[%emt 0:00:43]} Kd5 {[%emt 0:00:50]} 32. Kd3 {[%emt 0:00:01]} b5 {[%emt 0:06:38]} 33. f4 {[%emt 0:02:17]} a5 {[%emt 0:04:52]} 34. f3 {[%emt 0:00:26]} a4 {[%emt 0:01:17]} 35. Kc3 {[%emt 0:02:29]} g6 {[%emt 0:05:22]} 36. h3 h6 {[%emt 0:00:00]} 37. h4 {[%emt 0:00:00]} h5 {[%emt 0:00:00]} 38. Kd3 Ke6 39. Ke3 Kf5 {Ke4+} 40. b4 0-1

[Event "DFMMLV 2019"]
[Site "Braunfels"]
[Date "2019.06.21"]
[Round "3.55"]
[White "Zell, Hannah"]
[Black "Albayrak, Berrak"]
[Result "1/2-1/2"]
[ECO "B08"]
[WhiteElo "1473"]
[BlackElo "1491"]
[Annotator "NA"]
[PlyCount "80"]
[EventDate "2019.06.20"]
[EventType "team-tourn"]
[EventCountry "GER"]
[SourceTitle "playchess.com"]
[Source "ChessBase"]
[SourceQuality "1"]
[WhiteTeam "Wuerttemberg 2"]
[BlackTeam "Bayern 2"]
[TimeControl "40/5400+30:1800+30"]

1. e4 {[%emt 0:00:00]} d6 {[%emt 0:00:00]} 2. d4 {[%emt 0:00:00]} Nf6 {[%emt 0:00:00]} 3. Nc3 {[%emt 0:00:37]} g6 {[%emt 0:00:00]} 4. Nf3 {[%emt 0:01:17]} Bg7 {[%emt 0:00:04]} 5. Be3 {[%emt 0:01:37]} c6 {[%emt 0:01:47]} 6. h3 {[%emt 0:08:16]} Qc7 {[%emt 0:02:07]} 7. Qd2 {[%emt 0:03:36]} h5 {[%emt 0:06:02]} 8. Be2 {[%emt 0:03:13]} Nbd7 {[%emt 0:02:38]} 9. a3 {[%emt 0:03:09]} Nb6 {[%emt 0:04:37]} 10. O-O-O {[%emt 0:04:10]} Bd7 {[%emt 0:03:12]} 11. Nh2 {[%emt 0:03:24]} O-O-O {[%emt 0:02:41]} 12. f4 Kb8 13. Nf3 {[%emt 0:10:08]} Nh7 {[%emt 0:23:47]} 14. Kb1 {[%emt 0:04:24]} f6 {[%emt 0:07:07]} 15. Qc1 {[%emt 0:11:07]} e5 {[%emt 0:09:53]} 16. dxe5 {[%emt 0:09:36]} dxe5 {[%emt 0:01:19]} 17. fxe5 {[%emt 0:03:08]} fxe5 {[%emt 0:00:24]} 18. Ng5 {[%emt 0:00:31]} Nxg5 {[%emt 0:03:02]} 19. Bxg5 {[%emt 0:00:24]} Rde8 {[%emt 0:02:41]} 20. Rhf1 {[%emt 0:02:19]} Be6 {[%emt 0:02:56]} 21. Qd2 {[%emt 0:02:48]} Nc4 {[%emt 0:08:54]} 22. Bxc4 {[%emt 0:03:00]} Bxc4 {[%emt 0:00:05]} 23. Rf2 {[%emt 0:01:08]} Rhf8 {[%emt 0:05:14]} 24. Rxf8 {[%emt 0:08:19]} Bxf8 {[%emt 0:01:40]} 25. Qd7 {[%emt 0:02:56]} Qxd7 {[%emt 0:01:28]} 26. Rxd7 {[%emt 0:00:08]} Kc8 {[%emt 0:02:26]} 27. Rd2 {[%emt 0:00:30]} Be7 {[%emt 0:02:18]} 28. Bxe7 {[%emt 0:05:17]} Rxe7 {[%emt 0:00:05]} 29. b3 {[%emt 0:00:29]} Be6 {[%emt 0:00:54]} 30. Rf2 {[%emt 0:00:26]} Rf7 {[%emt 0:02:34]} 31. Nd1 {[%emt 0:02:04]} g5 {[%emt 0:01:42]} 32. Kc1 {[%emt 0:02:56]} Rxf2 {[%emt 0:01:11]} 33. Nxf2 {[%emt 0:00:07]} Kd7 {[%emt 0:00:11]} 34. Kd2 {[%emt 0:03:37]} Kd6 {[%emt 0:00:59]} 35. Kc3 {[%emt 0:01:45]} a5 {[%emt 0:01:21]} 36. g3 {[%emt 0:00:40]} h4 {[%emt 0:00:46]} 37. g4 {[%emt 0:00:14]} b5 {[%emt 0:01:13]} 38. b4 {[%emt 0:00:53]} a4 {[%emt 0:00:17]} 39. Nd3 {[%emt 0:00:42]} Bc4 {[%emt 0:00:38]} 40. Kd2 {[%emt 0:00:32]} Ke6 {[%emt 0:00:54]} 1/2-1/2